[Event "Titled Tuesday Blitz April 19 Late 2022"]
[White "Bilych, Olexiy"]
[Black "Jacobson, Brandon"]
[WhiteFideId "14156504"]
[BlackFideId "30901561"]
[WhiteElo "2176"]
[BlackElo "2362"]
[Result "0-1"]
[Round "03"]
[TimeControl "180+1"]
[Date "2022.04.19"]
[WhiteClock "0:00:06"]
[BlackClock "0:00:21"]

1. e4 {[%clk 0:03:00]}  c5 {[%clk 0:02:58]} 2. Nf3 {[%clk 0:03:01]}  d6 {[%clk 0:02:59]} 3. d4 {[%clk 0:02:58]}  cxd4 {[%clk 0:03:00]} 4. Nxd4 {[%clk 0:02:59]}  Nf6 {[%clk 0:03:01]} 5. Nc3 {[%clk 0:02:59]}  Nc6 {[%clk 0:03:02]} 6. Bg5 {[%clk 0:02:58]}  e6 {[%clk 0:03:02]} 7. Qd3 {[%clk 0:02:59]}  Bd7 {[%clk 0:03:03]} 8. Ndb5 {[%clk 0:02:59]}  Nb4 {[%clk 0:03:03]} 9. Qd1 {[%clk 0:02:58]}  Qb8 {[%clk 0:03:04]} 10. Bf4 {[%clk 0:02:51]}  e5 {[%clk 0:03:03]} 11. Bg5 {[%clk 0:02:51]}  a6 {[%clk 0:03:04]} 12. Bxf6 {[%clk 0:02:37]}  gxf6 {[%clk 0:03:05]} 13. Na3 {[%clk 0:02:36]}  b5 {[%clk 0:03:06]} 14. Nab1 {[%clk 0:02:34]}  Bg7 {[%clk 0:02:56]} 15. a4 {[%clk 0:02:15]}  O-O {[%clk 0:02:42]} 16. Na3 {[%clk 0:01:53]}  Qb7 {[%clk 0:02:28]} 17. Qxd6 {[%clk 0:01:43]}  bxa4 {[%clk 0:02:28]} 18. Bc4 {[%clk 0:01:17]}  Bc6 {[%clk 0:02:17]} 19. O-O {[%clk 0:01:08]}  Rfd8 {[%clk 0:02:17]} 20. Qc5 {[%clk 0:01:06]}  Rd4 {[%clk 0:01:58]} 21. Qa5 {[%clk 0:00:53]}  Nxc2 {[%clk 0:01:48]} 22. Nxc2 {[%clk 0:00:48]}  Rxc4 {[%clk 0:01:48]} 23. Ne3 {[%clk 0:00:49]}  Rb4 {[%clk 0:01:37]} 24. Ned5 {[%clk 0:00:36]}  Rxb2 {[%clk 0:01:32]} 25. Qc5 {[%clk 0:00:35]}  Kh8 {[%clk 0:01:13]} 26. Rfb1 {[%clk 0:00:30]}  Rb8 {[%clk 0:01:04]} 27. h4 {[%clk 0:00:16]}  Bxd5 {[%clk 0:01:01]} 28. Rxb2 {[%clk 0:00:17]}  Qxb2 {[%clk 0:00:59]} 29. Rb1 {[%clk 0:00:15]}  Qxb1+ {[%clk 0:00:57]} 30. Nxb1 {[%clk 0:00:16]}  Rxb1+ {[%clk 0:00:57]} 31. Kh2 {[%clk 0:00:17]}  Be6 {[%clk 0:00:58]} 32. Qe7 {[%clk 0:00:14]}  h6 {[%clk 0:00:45]} 33. Qe8+ {[%clk 0:00:14]}  Kh7 {[%clk 0:00:45]} 34. Qxa4 {[%clk 0:00:14]}  Rb6 {[%clk 0:00:42]} 35. Qa5 {[%clk 0:00:15]}  Rd6 {[%clk 0:00:41]} 36. h5 {[%clk 0:00:15]}  f5 {[%clk 0:00:39]} 37. exf5 {[%clk 0:00:15]}  Bxf5 {[%clk 0:00:39]} 38. Qc5 {[%clk 0:00:15]}  Re6 {[%clk 0:00:37]} 39. Qa7 {[%clk 0:00:15]}  Kg8 {[%clk 0:00:33]} 40. f3 {[%clk 0:00:15]}  e4 {[%clk 0:00:33]} 41. g4 {[%clk 0:00:15]}  Bh7 {[%clk 0:00:30]} 42. fxe4 {[%clk 0:00:15]}  Bxe4 {[%clk 0:00:31]} 43. Qb8+ {[%clk 0:00:15]}  Kh7 {[%clk 0:00:31]} 44. Kh3 {[%clk 0:00:15]}  Bc6 {[%clk 0:00:30]} 45. Qc7 {[%clk 0:00:14]}  Re3+ {[%clk 0:00:30]} 46. Kh4 {[%clk 0:00:10]}  Bf6+ {[%clk 0:00:30]} 47. g5 {[%clk 0:00:11]}  Bxg5+ {[%clk 0:00:27]} 48. Kg4 {[%clk 0:00:11]}  Bf3+ {[%clk 0:00:28]} 49. Kf5 {[%clk 0:00:12]}  Be4+ {[%clk 0:00:20]} 50. Kg4 {[%clk 0:00:12]}  Bd5 {[%clk 0:00:20]} 51. Qc2+ {[%clk 0:00:07]}  Kg7 {[%clk 0:00:20]} 52. Qb2+ {[%clk 0:00:06]}  Bf6 {[%clk 0:00:21]} 53. Qd2 {[%clk 0:00:06]}  Be6+ {[%clk 0:00:21]} 54. Kf4 {[%clk 0:00:06]}  Bg5# {[%clk 0:00:21]} 0-1


[Site "https://www.chess.com"]

[Event "Titled Tuesday Blitz April 19 Late 2022"]
[White "Boskovic, Drasko"]
[Black "Sochacki, Christophe"]
[WhiteFideId "927368"]
[BlackFideId "662569"]
[WhiteElo "2388"]
[BlackElo "2480"]
[Result "0-1"]
[Round "03"]
[TimeControl "180+1"]
[Date "2022.04.19"]
[WhiteClock "0:00:18"]
[BlackClock "0:00:12"]

1. e4 {[%clk 0:02:59]}  g6 {[%clk 0:02:54]} 2. d4 {[%clk 0:02:58]}  Nf6 {[%clk 0:02:55]} 3. Nc3 {[%clk 0:02:59]}  d5 {[%clk 0:02:53]} 4. e5 {[%clk 0:03:00]}  Ne4 {[%clk 0:02:53]} 5. Nxe4 {[%clk 0:03:00]}  dxe4 {[%clk 0:02:54]} 6. Be3 {[%clk 0:03:01]}  c5 {[%clk 0:02:52]} 7. c3 {[%clk 0:03:00]}  cxd4 {[%clk 0:02:52]} 8. cxd4 {[%clk 0:03:01]}  Nc6 {[%clk 0:02:46]} 9. Ne2 {[%clk 0:03:01]}  Bg4 {[%clk 0:02:41]} 10. h3 {[%clk 0:03:02]}  Qa5+ {[%clk 0:02:28]} 11. Qd2 {[%clk 0:02:41]}  Nb4 {[%clk 0:02:08]} 12. hxg4 {[%clk 0:02:33]}  Nc2+ {[%clk 0:01:50]} 13. Kd1 {[%clk 0:02:34]}  Qxd2+ {[%clk 0:01:50]} 14. Kxd2 {[%clk 0:02:31]}  Nxa1 {[%clk 0:01:51]} 15. Nc3 {[%clk 0:02:31]}  O-O-O {[%clk 0:01:46]} 16. Bc4 {[%clk 0:02:28]}  Bg7 {[%clk 0:01:45]} 17. Bxf7 {[%clk 0:02:10]}  Bxe5 {[%clk 0:01:44]} 18. Be6+ {[%clk 0:02:08]}  Kb8 {[%clk 0:01:40]} 19. Rxa1 {[%clk 0:02:07]}  Bxd4 {[%clk 0:01:34]} 20. Bxd4 {[%clk 0:02:08]}  Rxd4+ {[%clk 0:01:35]} 21. Ke3 {[%clk 0:02:08]}  Rd3+ {[%clk 0:01:30]} 22. Ke2 {[%clk 0:02:06]}  Rd4 {[%clk 0:01:26]} 23. Rd1 {[%clk 0:02:04]}  Rhd8 {[%clk 0:01:21]} 24. Rxd4 {[%clk 0:02:04]}  Rxd4 {[%clk 0:01:22]} 25. Bd5 {[%clk 0:02:04]}  e3 {[%clk 0:01:17]} 26. Kxe3 {[%clk 0:01:51]}  Rxg4 {[%clk 0:01:07]} 27. f4 {[%clk 0:01:41]}  Rh4 {[%clk 0:01:03]} 28. Ne4 {[%clk 0:01:38]}  Rh1 {[%clk 0:01:01]} 29. Ng5 {[%clk 0:01:37]}  Kc7 {[%clk 0:01:00]} 30. Bg8 {[%clk 0:01:36]}  h6 {[%clk 0:00:59]} 31. Ne6+ {[%clk 0:01:35]}  Kd6 {[%clk 0:00:59]} 32. Nd4 {[%clk 0:01:31]}  Rb1 {[%clk 0:00:59]} 33. b3 {[%clk 0:01:30]}  Rb2 {[%clk 0:00:54]} 34. a4 {[%clk 0:01:30]}  a6 {[%clk 0:00:40]} 35. g3 {[%clk 0:01:30]}  e5 {[%clk 0:00:28]} 36. fxe5+ {[%clk 0:01:31]}  Kxe5 {[%clk 0:00:29]} 37. Nf3+ {[%clk 0:01:31]}  Kf5 {[%clk 0:00:28]} 38. Bd5 {[%clk 0:01:32]}  g5 {[%clk 0:00:26]} 39. Nd4+ {[%clk 0:01:29]}  Kg4 {[%clk 0:00:26]} 40. Ne2 {[%clk 0:01:07]}  b5 {[%clk 0:00:22]} 41. axb5 {[%clk 0:01:01]}  axb5 {[%clk 0:00:23]} 42. Be6+ {[%clk 0:00:59]}  Kh5 {[%clk 0:00:24]} 43. Nd4 {[%clk 0:00:56]}  b4 {[%clk 0:00:21]} 44. Bf5 {[%clk 0:00:51]}  g4 {[%clk 0:00:20]} 45. Be6 {[%clk 0:00:37]}  Kg5 {[%clk 0:00:19]} 46. Nc6 {[%clk 0:00:37]}  Rg2 {[%clk 0:00:19]} 47. Nxb4 {[%clk 0:00:34]}  h5 {[%clk 0:00:19]} 48. Kd4 {[%clk 0:00:35]}  Rxg3 {[%clk 0:00:18]} 49. Nd3 {[%clk 0:00:34]}  h4 {[%clk 0:00:19]} 50. b4 {[%clk 0:00:34]}  h3 {[%clk 0:00:19]} 51. b5 {[%clk 0:00:33]}  h2 {[%clk 0:00:18]} 52. Bd5 {[%clk 0:00:34]}  Rg1 {[%clk 0:00:13]} 53. Nf2 {[%clk 0:00:18]}  g3 {[%clk 0:00:12]} 0-1


[Site "https://www.chess.com"]

[Event "Titled Tuesday Blitz April 19 Late 2022"]
[White "Buchenau, Frank"]
[Black "Kohler, Aran"]
[WhiteFideId "4604350"]
[BlackFideId "1002856"]
[WhiteElo "2193"]
[BlackElo "2308"]
[Result "1-0"]
[Round "03"]
[TimeControl "180+1"]
[Date "2022.04.19"]
[WhiteClock "0:00:10"]
[BlackClock "0:00:13"]

1. e4 {[%clk 0:02:49]}  c6 {[%clk 0:02:59]} 2. Nf3 {[%clk 0:02:49]}  d5 {[%clk 0:03:00]} 3. Nc3 {[%clk 0:02:49]}  Bg4 {[%clk 0:02:58]} 4. d4 {[%clk 0:02:49]}  dxe4 {[%clk 0:02:48]} 5. Nxe4 {[%clk 0:02:48]}  e6 {[%clk 0:02:48]} 6. c3 {[%clk 0:02:47]}  Nd7 {[%clk 0:02:43]} 7. Ng3 {[%clk 0:02:46]}  Ngf6 {[%clk 0:02:42]} 8. h3 {[%clk 0:02:45]}  Bxf3 {[%clk 0:02:40]} 9. Qxf3 {[%clk 0:02:45]}  Bd6 {[%clk 0:02:35]} 10. Bd3 {[%clk 0:02:43]}  h6 {[%clk 0:02:33]} 11. O-O {[%clk 0:02:43]}  Qc7 {[%clk 0:02:33]} 12. Re1 {[%clk 0:02:42]}  Bxg3 {[%clk 0:02:31]} 13. fxg3 {[%clk 0:02:41]}  O-O {[%clk 0:02:25]} 14. Bf4 {[%clk 0:02:40]}  Qa5 {[%clk 0:02:22]} 15. g4 {[%clk 0:02:37]}  Rfe8 {[%clk 0:02:19]} 16. a4 {[%clk 0:02:35]}  e5 {[%clk 0:02:05]} 17. b4 {[%clk 0:02:32]}  Qc7 {[%clk 0:02:02]} 18. Bg3 {[%clk 0:02:30]}  Re7 {[%clk 0:01:49]} 19. Re3 {[%clk 0:02:18]}  Rae8 {[%clk 0:01:49]} 20. Rae1 {[%clk 0:02:18]}  Nd5 {[%clk 0:01:46]} 21. Bxe5 {[%clk 0:01:20]}  Nxe5 {[%clk 0:01:42]} 22. Rxe5 {[%clk 0:01:18]}  Rxe5 {[%clk 0:01:42]} 23. dxe5 {[%clk 0:01:10]}  Rxe5 {[%clk 0:01:42]} 24. Rxe5 {[%clk 0:01:06]}  Qxe5 {[%clk 0:01:43]} 25. Qf5 {[%clk 0:00:51]}  Qxf5 {[%clk 0:01:25]} 26. Bxf5 {[%clk 0:00:51]}  Nxc3 {[%clk 0:01:25]} 27. a5 {[%clk 0:00:43]}  b6 {[%clk 0:01:25]} 28. axb6 {[%clk 0:00:41]}  axb6 {[%clk 0:01:25]} 29. Kf2 {[%clk 0:00:40]}  Kf8 {[%clk 0:01:15]} 30. Bd7 {[%clk 0:00:39]}  c5 {[%clk 0:01:08]} 31. bxc5 {[%clk 0:00:38]}  bxc5 {[%clk 0:01:07]} 32. Ke3 {[%clk 0:00:38]}  Ke7 {[%clk 0:01:06]} 33. Bc8 {[%clk 0:00:34]}  Nd5+ {[%clk 0:01:00]} 34. Ke4 {[%clk 0:00:33]}  Nb6 {[%clk 0:01:01]} 35. Ba6 {[%clk 0:00:30]}  g6 {[%clk 0:00:57]} 36. Bd3 {[%clk 0:00:29]}  Kd6 {[%clk 0:00:54]} 37. Bc2 {[%clk 0:00:28]}  Nd7 {[%clk 0:00:45]} 38. Bb3 {[%clk 0:00:27]}  Ne5 {[%clk 0:00:44]} 39. Ba2 {[%clk 0:00:24]}  f6 {[%clk 0:00:43]} 40. Bg8 {[%clk 0:00:22]}  Ke7 {[%clk 0:00:34]} 41. Kd5 {[%clk 0:00:21]}  c4 {[%clk 0:00:33]} 42. Kd4 {[%clk 0:00:20]}  f5 {[%clk 0:00:29]} 43. gxf5 {[%clk 0:00:20]}  Nc6+ {[%clk 0:00:29]} 44. Kxc4 {[%clk 0:00:18]}  gxf5 {[%clk 0:00:29]} 45. Kd5 {[%clk 0:00:18]}  Nb4+ {[%clk 0:00:24]} 46. Ke5 {[%clk 0:00:18]}  Kf8 {[%clk 0:00:24]} 47. Bc4 {[%clk 0:00:17]}  Kg7 {[%clk 0:00:23]} 48. Kxf5 {[%clk 0:00:17]}  Nc6 {[%clk 0:00:24]} 49. g4 {[%clk 0:00:16]}  Nd4+ {[%clk 0:00:23]} 50. Ke5 {[%clk 0:00:15]}  Nf3+ {[%clk 0:00:23]} 51. Kf4 {[%clk 0:00:15]}  Nh4 {[%clk 0:00:22]} 52. Bd3 {[%clk 0:00:11]}  Kf6 {[%clk 0:00:16]} 53. Be4 {[%clk 0:00:11]}  Ke6 {[%clk 0:00:12]} 54. Kg3 {[%clk 0:00:11]}  Ke5 {[%clk 0:00:11]} 55. Kxh4 {[%clk 0:00:10]}  Kxe4 {[%clk 0:00:11]} 56. Kh5 {[%clk 0:00:08]}  Kf4 {[%clk 0:00:10]} 57. Kxh6 {[%clk 0:00:09]}  Kg3 {[%clk 0:00:11]} 58. g5 {[%clk 0:00:09]}  Kxh3 {[%clk 0:00:12]} 59. g6 {[%clk 0:00:09]}  Kh2 {[%clk 0:00:13]} 60. g7 {[%clk 0:00:10]}  Kh1 {[%clk 0:00:13]} 61. g8=Q {[%clk 0:00:10]} 1-0


[Site "https://www.chess.com"]

[Event "Titled Tuesday Blitz April 19 Late 2022"]
[White "D`Arruda, Ricardo D."]
[Black "Janaszak, Dawid"]
[WhiteFideId "100692"]
[BlackFideId "1119206"]
[WhiteElo "2400"]
[BlackElo "2199"]
[Result "1-0"]
[Round "03"]
[TimeControl "180+1"]
[Date "2022.04.19"]
[WhiteClock "0:00:09"]
[BlackClock "0:00:07"]

1. Nf3 {[%clk 0:02:56]}  c5 {[%clk 0:02:59]} 2. g3 {[%clk 0:02:48]}  g6 {[%clk 0:03:00]} 3. Bg2 {[%clk 0:02:48]}  Bg7 {[%clk 0:03:00]} 4. O-O {[%clk 0:02:48]}  Nf6 {[%clk 0:03:01]} 5. d3 {[%clk 0:02:49]}  O-O {[%clk 0:03:01]} 6. Nc3 {[%clk 0:02:49]}  Nc6 {[%clk 0:02:57]} 7. e4 {[%clk 0:02:50]}  d6 {[%clk 0:02:56]} 8. Nh4 {[%clk 0:02:48]}  Rb8 {[%clk 0:02:50]} 9. f4 {[%clk 0:02:47]}  Bd7 {[%clk 0:02:36]} 10. f5 {[%clk 0:02:47]}  b5 {[%clk 0:02:34]} 11. Bf4 {[%clk 0:02:38]}  b4 {[%clk 0:02:33]} 12. Ne2 {[%clk 0:02:36]}  a5 {[%clk 0:02:24]} 13. Qd2 {[%clk 0:02:35]}  Ne5 {[%clk 0:02:14]} 14. Bh6 {[%clk 0:02:33]}  a4 {[%clk 0:02:09]} 15. Bxg7 {[%clk 0:02:32]}  Kxg7 {[%clk 0:02:10]} 16. h3 {[%clk 0:02:24]}  Bb5 {[%clk 0:01:58]} 17. b3 {[%clk 0:02:21]}  d5 {[%clk 0:01:54]} 18. Qf4 {[%clk 0:02:09]}  Qd6 {[%clk 0:01:47]} 19. fxg6 {[%clk 0:02:05]}  fxg6 {[%clk 0:01:35]} 20. Qg5 {[%clk 0:02:04]}  Kh8 {[%clk 0:01:14]} 21. exd5 {[%clk 0:01:12]}  Nxd5 {[%clk 0:01:14]} 22. Qh6 {[%clk 0:01:07]}  Kg8 {[%clk 0:00:46]} 23. Be4 {[%clk 0:00:56]}  Nf6 {[%clk 0:00:38]} 24. Bg2 {[%clk 0:00:46]}  Bc6 {[%clk 0:00:29]} 25. Bxc6 {[%clk 0:00:42]}  Qxc6 {[%clk 0:00:30]} 26. Nf4 {[%clk 0:00:38]}  Nf7 {[%clk 0:00:27]} 27. Nhxg6 {[%clk 0:00:33]}  hxg6 {[%clk 0:00:18]} 28. Qxg6+ {[%clk 0:00:31]}  Kh8 {[%clk 0:00:18]} 29. Nh5 {[%clk 0:00:25]}  Rg8 {[%clk 0:00:12]} 30. Qxf7 {[%clk 0:00:25]}  Nxh5 {[%clk 0:00:09]} 31. Qxh5+ {[%clk 0:00:24]}  Kg7 {[%clk 0:00:09]} 32. Rf4 {[%clk 0:00:24]}  Rbf8 {[%clk 0:00:06]} 33. Raf1 {[%clk 0:00:22]}  Rf6 {[%clk 0:00:06]} 34. Rg4+ {[%clk 0:00:20]}  Kf8 {[%clk 0:00:06]} 35. Qh6+ {[%clk 0:00:18]}  Kf7 {[%clk 0:00:05]} 36. Qh7+ {[%clk 0:00:18]}  Ke6 {[%clk 0:00:06]} 37. Qxg8+ {[%clk 0:00:17]}  Kd7 {[%clk 0:00:06]} 38. Rxf6 {[%clk 0:00:11]}  Qxf6 {[%clk 0:00:07]} 39. Rf4 {[%clk 0:00:11]}  Qa1+ {[%clk 0:00:07]} 40. Kg2 {[%clk 0:00:11]}  Qd1 {[%clk 0:00:06]} 41. Qd5+ {[%clk 0:00:11]}  Kc7 {[%clk 0:00:07]} 42. Qxc5+ {[%clk 0:00:11]}  Kd7 {[%clk 0:00:07]} 43. Rd4+ {[%clk 0:00:09]}  Ke6 {[%clk 0:00:07]} 44. Qd5+ {[%clk 0:00:09]} 1-0


[Site "https://www.chess.com"]

[Event "Titled Tuesday Blitz April 19 Late 2022"]
[White "Esipenko, Andrey"]
[Black "Korchmar, Vasiliy"]
[WhiteFideId "24175439"]
[BlackFideId "24131750"]
[WhiteElo "2617"]
[BlackElo "2370"]
[Result "1-0"]
[Round "03"]
[TimeControl "180+1"]
[Date "2022.04.19"]
[WhiteClock "0:00:11"]
[BlackClock "0:00:04"]

1. e4 {[%clk 0:02:56]}  c5 {[%clk 0:02:59]} 2. Nf3 {[%clk 0:02:56]}  d6 {[%clk 0:02:58]} 3. d4 {[%clk 0:02:56]}  cxd4 {[%clk 0:02:59]} 4. Nxd4 {[%clk 0:02:56]}  Nf6 {[%clk 0:03:00]} 5. Nc3 {[%clk 0:02:57]}  Nc6 {[%clk 0:03:00]} 6. Bg5 {[%clk 0:02:55]}  e6 {[%clk 0:02:59]} 7. Qd2 {[%clk 0:02:55]}  a6 {[%clk 0:02:59]} 8. O-O-O {[%clk 0:02:53]}  h6 {[%clk 0:02:59]} 9. Nxc6 {[%clk 0:02:44]}  bxc6 {[%clk 0:02:59]} 10. Bf4 {[%clk 0:02:41]}  d5 {[%clk 0:02:59]} 11. Qe3 {[%clk 0:02:34]}  Bb4 {[%clk 0:02:59]} 12. Be2 {[%clk 0:02:32]}  O-O {[%clk 0:02:59]} 13. e5 {[%clk 0:02:16]}  Nd7 {[%clk 0:02:59]} 14. h4 {[%clk 0:02:16]}  f6 {[%clk 0:02:53]} 15. exf6 {[%clk 0:02:06]}  Qxf6 {[%clk 0:02:54]} 16. Bg3 {[%clk 0:01:56]}  e5 {[%clk 0:02:40]} 17. Ne4 {[%clk 0:01:51]}  Qf7 {[%clk 0:02:16]} 18. a3 {[%clk 0:01:24]}  Be7 {[%clk 0:02:10]} 19. Qc3 {[%clk 0:01:24]}  Qe6 {[%clk 0:00:54]} 20. Rhe1 {[%clk 0:01:05]}  Kh8 {[%clk 0:00:52]} 21. Nd2 {[%clk 0:01:04]}  e4 {[%clk 0:00:51]} 22. f3 {[%clk 0:00:42]}  Bf6 {[%clk 0:00:50]} 23. Qa5 {[%clk 0:00:42]}  e3 {[%clk 0:00:39]} 24. Nb3 {[%clk 0:00:42]}  Ne5 {[%clk 0:00:25]} 25. Qc5 {[%clk 0:00:40]}  Bd7 {[%clk 0:00:23]} 26. Qxe3 {[%clk 0:00:35]}  Rfe8 {[%clk 0:00:17]} 27. Qc5 {[%clk 0:00:30]}  Qf7 {[%clk 0:00:12]} 28. Nd4 {[%clk 0:00:25]}  Rab8 {[%clk 0:00:08]} 29. Bf2 {[%clk 0:00:23]}  Nc4 {[%clk 0:00:07]} 30. Bxc4 {[%clk 0:00:21]}  dxc4 {[%clk 0:00:08]} 31. Bg3 {[%clk 0:00:17]}  Rb7 {[%clk 0:00:06]} 32. Rxe8+ {[%clk 0:00:16]}  Qxe8 {[%clk 0:00:05]} 33. Re1 {[%clk 0:00:16]}  Qf7 {[%clk 0:00:04]} 34. h5 {[%clk 0:00:14]}  Bg5+ {[%clk 0:00:03]} 35. Kb1 {[%clk 0:00:13]}  Bf6 {[%clk 0:00:04]} 36. Be5 {[%clk 0:00:12]}  Be7 {[%clk 0:00:04]} 37. Bxg7+ {[%clk 0:00:11]} 1-0


[Site "https://www.chess.com"]

[Event "Titled Tuesday Blitz April 19 Late 2022"]
[White "Espinosa, Pedro"]
[Black "Jimenez Fernandez, Rebeca"]
[WhiteFideId "30921066"]
[BlackFideId "32070934"]
[WhiteElo "1696"]
[BlackElo "1853"]
[Result "1-0"]
[Round "03"]
[TimeControl "180+1"]
[Date "2022.04.19"]
[WhiteClock "0:02:06"]
[BlackClock "0:00:01"]

1. d4 {[%clk 0:03:00]}  d5 {[%clk 0:02:59]} 2. c4 {[%clk 0:03:01]}  c6 {[%clk 0:02:58]} 3. cxd5 {[%clk 0:03:01]}  cxd5 {[%clk 0:02:58]} 4. Nc3 {[%clk 0:03:02]}  Nf6 {[%clk 0:02:58]} 5. Bf4 {[%clk 0:03:02]}  e6 {[%clk 0:02:58]} 6. e3 {[%clk 0:03:03]}  Bd6 {[%clk 0:02:55]} 7. Bxd6 {[%clk 0:03:03]}  Qxd6 {[%clk 0:02:56]} 8. Nf3 {[%clk 0:03:03]}  O-O {[%clk 0:02:56]} 9. Bd3 {[%clk 0:03:02]}  Nc6 {[%clk 0:02:53]} 10. a3 {[%clk 0:03:01]}  a6 {[%clk 0:02:49]} 11. O-O {[%clk 0:03:00]}  b5 {[%clk 0:02:49]} 12. Rc1 {[%clk 0:03:00]}  Bb7 {[%clk 0:02:38]} 13. b4 {[%clk 0:02:59]}  e5 {[%clk 0:02:38]} 14. dxe5 {[%clk 0:02:58]}  Nxe5 {[%clk 0:02:39]} 15. Nxe5 {[%clk 0:02:59]}  Qxe5 {[%clk 0:02:40]} 16. Ne2 {[%clk 0:02:59]}  Ng4 {[%clk 0:02:31]} 17. Nf4 {[%clk 0:02:41]}  Nf6 {[%clk 0:01:06]} 18. Be2 {[%clk 0:02:34]}  Rad8 {[%clk 0:01:01]} 19. Bf3 {[%clk 0:02:31]}  Ne4 {[%clk 0:00:28]} 20. Nd3 {[%clk 0:02:27]}  Qf6 {[%clk 0:00:21]} 21. Nc5 {[%clk 0:02:16]}  Nxc5 {[%clk 0:00:20]} 22. Rxc5 {[%clk 0:02:17]}  Rd7 {[%clk 0:00:06]} 23. Qd3 {[%clk 0:02:12]}  Rfd8 {[%clk 0:00:06]} 24. Rd1 {[%clk 0:02:11]}  d4 {[%clk 0:00:03]} 25. Bxb7 {[%clk 0:02:11]}  Rxb7 {[%clk 0:00:03]} 26. exd4 {[%clk 0:02:08]}  Rbd7 {[%clk 0:00:03]} 27. d5 {[%clk 0:02:08]}  Qe5 {[%clk 0:00:02]} 28. h3 {[%clk 0:02:07]}  h6 {[%clk 0:00:01]} 29. Qd4 {[%clk 0:02:06]} 1-0


[Site "https://www.chess.com"]

[Event "Titled Tuesday Blitz April 19 Late 2022"]
[White "Ezat, Mohamed"]
[Black "Rasulov, Vugar"]
[WhiteFideId "10600906"]
[BlackFideId "13402390"]
[WhiteElo "2386"]
[BlackElo "2560"]
[Result "0-1"]
[Round "03"]
[TimeControl "180+1"]
[Date "2022.04.19"]
[WhiteClock "0:00:12"]
[BlackClock "0:00:33"]

1. d4 {[%clk 0:03:00]}  d5 {[%clk 0:02:59]} 2. c4 {[%clk 0:02:58]}  c6 {[%clk 0:02:59]} 3. Nc3 {[%clk 0:02:58]}  Nf6 {[%clk 0:03:00]} 4. cxd5 {[%clk 0:02:58]}  cxd5 {[%clk 0:03:00]} 5. Bf4 {[%clk 0:02:58]}  Nc6 {[%clk 0:03:00]} 6. e3 {[%clk 0:02:58]}  Bf5 {[%clk 0:02:59]} 7. Bd3 {[%clk 0:02:53]}  Bg6 {[%clk 0:02:56]} 8. Nf3 {[%clk 0:02:51]}  e6 {[%clk 0:02:56]} 9. O-O {[%clk 0:02:52]}  Bb4 {[%clk 0:02:54]} 10. Rc1 {[%clk 0:02:47]}  O-O {[%clk 0:02:53]} 11. Ne5 {[%clk 0:02:46]}  Rc8 {[%clk 0:02:51]} 12. Bg5 {[%clk 0:02:45]}  Be7 {[%clk 0:02:46]} 13. Na4 {[%clk 0:02:32]}  Nb4 {[%clk 0:02:07]} 14. Bxg6 {[%clk 0:02:26]}  hxg6 {[%clk 0:02:05]} 15. a3 {[%clk 0:02:24]}  Na6 {[%clk 0:01:57]} 16. b4 {[%clk 0:02:20]}  Nb8 {[%clk 0:01:41]} 17. Nc5 {[%clk 0:02:18]}  b6 {[%clk 0:01:37]} 18. Ncd3 {[%clk 0:02:13]}  Rc7 {[%clk 0:01:28]} 19. Qa4 {[%clk 0:02:08]}  Ne4 {[%clk 0:01:21]} 20. Bxe7 {[%clk 0:01:54]}  Qxe7 {[%clk 0:01:20]} 21. Rxc7 {[%clk 0:01:54]}  Qxc7 {[%clk 0:01:21]} 22. Rc1 {[%clk 0:01:51]}  Qe7 {[%clk 0:01:19]} 23. f3 {[%clk 0:01:47]}  Nd6 {[%clk 0:01:15]} 24. Nc6 {[%clk 0:01:35]}  Nxc6 {[%clk 0:01:09]} 25. Rxc6 {[%clk 0:01:32]}  Nc4 {[%clk 0:01:09]} 26. e4 {[%clk 0:00:44]}  Qf6 {[%clk 0:01:08]} 27. e5 {[%clk 0:00:40]}  Qf5 {[%clk 0:01:08]} 28. Qd1 {[%clk 0:00:38]}  Nxa3 {[%clk 0:01:03]} 29. Rc7 {[%clk 0:00:36]}  Nb5 {[%clk 0:01:03]} 30. Rb7 {[%clk 0:00:34]}  Rc8 {[%clk 0:01:02]} 31. Nf2 {[%clk 0:00:31]}  Qf4 {[%clk 0:00:56]} 32. g3 {[%clk 0:00:27]}  Qxd4 {[%clk 0:00:53]} 33. Qxd4 {[%clk 0:00:27]}  Nxd4 {[%clk 0:00:54]} 34. f4 {[%clk 0:00:25]}  Nb5 {[%clk 0:00:49]} 35. h4 {[%clk 0:00:20]}  Kf8 {[%clk 0:00:44]} 36. Nh3 {[%clk 0:00:19]}  d4 {[%clk 0:00:44]} 37. Ng5 {[%clk 0:00:18]}  Rc7 {[%clk 0:00:45]} 38. Rb8+ {[%clk 0:00:14]}  Ke7 {[%clk 0:00:46]} 39. Ne4 {[%clk 0:00:13]}  d3 {[%clk 0:00:40]} 40. Kf2 {[%clk 0:00:13]}  Nc3 {[%clk 0:00:36]} 41. Nd6 {[%clk 0:00:12]}  d2 {[%clk 0:00:33]} 0-1


[Site "https://www.chess.com"]

[Event "Titled Tuesday Blitz April 19 Late 2022"]
[White "Golubev, Mikhail"]
[Black "Palacio,Igor Da Paz"]
[WhiteFideId "14100983"]
[BlackFideId "2121140"]
[WhiteElo "2374"]
[BlackElo "2144"]
[Result "1-0"]
[Round "03"]
[TimeControl "180+1"]
[Date "2022.04.19"]
[WhiteClock "0:00:17"]
[BlackClock "0:00:02"]

1. e4 {[%clk 0:03:00]}  Nf6 {[%clk 0:02:58]} 2. e5 {[%clk 0:03:00]}  Nd5 {[%clk 0:02:58]} 3. d4 {[%clk 0:03:00]}  d6 {[%clk 0:02:59]} 4. Nf3 {[%clk 0:03:01]}  Bg4 {[%clk 0:02:58]} 5. Be2 {[%clk 0:02:58]}  e6 {[%clk 0:02:58]} 6. c4 {[%clk 0:02:58]}  Nb6 {[%clk 0:02:57]} 7. Nc3 {[%clk 0:02:57]}  Be7 {[%clk 0:02:51]} 8. O-O {[%clk 0:02:51]}  O-O {[%clk 0:02:44]} 9. Be3 {[%clk 0:02:43]}  N8d7 {[%clk 0:02:32]} 10. exd6 {[%clk 0:02:23]}  cxd6 {[%clk 0:02:26]} 11. h3 {[%clk 0:02:13]}  Bh5 {[%clk 0:02:18]} 12. b3 {[%clk 0:02:06]}  Nf6 {[%clk 0:02:09]} 13. a4 {[%clk 0:02:02]}  a6 {[%clk 0:01:58]} 14. a5 {[%clk 0:01:44]}  Nbd7 {[%clk 0:01:58]} 15. b4 {[%clk 0:01:38]}  Rc8 {[%clk 0:01:54]} 16. c5 {[%clk 0:01:35]}  Nd5 {[%clk 0:01:20]} 17. Nxd5 {[%clk 0:01:20]}  exd5 {[%clk 0:01:21]} 18. Bf4 {[%clk 0:01:15]}  Nf6 {[%clk 0:01:15]} 19. Rc1 {[%clk 0:01:09]}  Ne4 {[%clk 0:01:07]} 20. Nd2 {[%clk 0:00:48]}  Bxe2 {[%clk 0:00:49]} 21. Qxe2 {[%clk 0:00:49]}  Nxd2 {[%clk 0:00:23]} 22. Qxd2 {[%clk 0:00:47]}  dxc5 {[%clk 0:00:23]} 23. dxc5 {[%clk 0:00:44]}  Bf6 {[%clk 0:00:23]} 24. Bd6 {[%clk 0:00:42]}  Re8 {[%clk 0:00:10]} 25. Qxd5 {[%clk 0:00:42]}  Rc6 {[%clk 0:00:10]} 26. Qd3 {[%clk 0:00:39]}  Qd7 {[%clk 0:00:04]} 27. Rfe1 {[%clk 0:00:37]}  Rcc8 {[%clk 0:00:03]} 28. Kf1 {[%clk 0:00:31]}  g6 {[%clk 0:00:03]} 29. Rxe8+ {[%clk 0:00:25]}  Rxe8 {[%clk 0:00:03]} 30. Kg1 {[%clk 0:00:20]}  Kg7 {[%clk 0:00:02]} 31. Bf8+ {[%clk 0:00:17]} 1-0


[Site "https://www.chess.com"]